[Event "*** Titled Tuesday Blitz"]
[Site "Chess.com"]
[Date "2021.04.06"]
[Round "11"]
[White "CzechmVIII"]
[Black "Nemsko"]
[Result "1-0"]
[WhiteElo "2208"]
[BlackElo "2277"]
[TimeControl "180+1"]
[EndTime "12:07:17 PDT"]
[Termination "CzechmVIII won on time"]

1. e4 {[%clk 0:03:00.9]} 1... c5 {[%clk 0:02:56.9]} 2. Nf3 {[%clk 0:03:00.8]}
2... d6 {[%clk 0:02:55.9]} 3. d4 {[%clk 0:03:00.9]} 3... cxd4 {[%clk 0:02:56.8]}
4. Nxd4 {[%clk 0:03:01.3]} 4... Nf6 {[%clk 0:02:57.5]} 5. Nc3 {[%clk 0:03:01.8]}
5... Nc6 {[%clk 0:02:56.2]} 6. Bc4 {[%clk 0:03:00.2]} 6... e6 {[%clk 0:02:56]}
7. Be3 {[%clk 0:02:59.3]} 7... Be7 {[%clk 0:02:51.8]} 8. Qe2 {[%clk 0:02:56.9]}
8... O-O {[%clk 0:02:50.5]} 9. O-O-O {[%clk 0:02:56.4]} 9... Bd7 {[%clk
0:02:49.9]} 10. g4 {[%clk 0:02:49.6]} 10... a6 {[%clk 0:02:49.1]} 11. g5 {[%clk
0:02:45.6]} 11... Ne8 {[%clk 0:02:47.6]} 12. Rhg1 {[%clk 0:02:22]} 12... b5
{[%clk 0:02:45.7]} 13. Bb3 {[%clk 0:02:15]} 13... Na5 {[%clk 0:02:37.3]} 14. Kb1
{[%clk 0:02:12.6]} 14... Rc8 {[%clk 0:02:34.2]} 15. f4 {[%clk 0:01:55.7]} 15...
Nc4 {[%clk 0:02:32.7]} 16. f5 {[%clk 0:01:37.4]} 16... Kh8 {[%clk 0:01:57.7]}
17. Bxc4 {[%clk 0:01:21.3]} 17... Rxc4 {[%clk 0:01:53.8]} 18. Rg3 {[%clk
0:01:05]} 18... Rxc3 {[%clk 0:01:36.1]} 19. bxc3 {[%clk 0:01:04.1]} 19... Qa5
{[%clk 0:01:36.1]} 20. Bc1 {[%clk 0:00:44.1]} 20... Nc7 {[%clk 0:01:23.2]} 21.
Rh3 {[%clk 0:00:28.8]} 21... g6 {[%clk 0:01:02.4]} 22. f6 {[%clk 0:00:25]} 22...
Bxf6 {[%clk 0:00:43.2]} 23. gxf6 {[%clk 0:00:24.2]} 23... e5 {[%clk 0:00:43.6]}
24. Qd2 {[%clk 0:00:17]} 24... Bxh3 {[%clk 0:00:39.7]} 25. Qh6 {[%clk
0:00:15.6]} 25... Rg8 {[%clk 0:00:40.2]} 26. Nc6 {[%clk 0:00:12.2]} 26... Qb6
{[%clk 0:00:26.6]} 27. Ne7 {[%clk 0:00:12]} 27... Qb8 {[%clk 0:00:26.9]} 28.
Qxh3 {[%clk 0:00:09.6]} 28... Ne6 {[%clk 0:00:22.7]} 29. Qh6 {[%clk 0:00:09.1]}
29... b4 {[%clk 0:00:18.1]} 30. Rd3 {[%clk 0:00:09.1]} 30... bxc3+ {[%clk
0:00:18]} 31. Ka1 {[%clk 0:00:09.6]} 31... Re8 {[%clk 0:00:15.6]} 32. Rh3 {[%clk
0:00:05]} 1-0

[Event "*** Titled Tuesday Blitz"]
[Site "Chess.com"]
[Date "2021.04.06"]
[Round "11"]
[White "beto-betun"]
[Black "KetiGrant"]
[Result "0-1"]
[WhiteElo "2235"]
[BlackElo "2360"]
[TimeControl "180+1"]
[EndTime "12:07:25 PDT"]
[Termination "KetiGrant won by resignation"]

1. d4 {[%clk 0:03:00.9]} 1... Nf6 {[%clk 0:02:59.2]} 2. Nf3 {[%clk 0:02:59.5]}
2... g6 {[%clk 0:03:00.1]} 3. g3 {[%clk 0:02:59.6]} 3... Bg7 {[%clk 0:03:00.9]}
4. Bg2 {[%clk 0:03:00.1]} 4... O-O {[%clk 0:03:01.3]} 5. O-O {[%clk 0:03:00.6]}
5... d6 {[%clk 0:03:02.2]} 6. c4 {[%clk 0:03:00.7]} 6... Nc6 {[%clk 0:03:02.3]}
7. b3 {[%clk 0:02:57.1]} 7... a6 {[%clk 0:03:02.7]} 8. Bb2 {[%clk 0:02:57.2]}
8... Rb8 {[%clk 0:03:02.8]} 9. Nbd2 {[%clk 0:02:47.7]} 9... b5 {[%clk
0:02:56.6]} 10. Qc2 {[%clk 0:02:44.5]} 10... Bb7 {[%clk 0:02:52.4]} 11. Rfd1
{[%clk 0:02:34.8]} 11... e6 {[%clk 0:02:48.7]} 12. e4 {[%clk 0:02:28.7]} 12...
Ne7 {[%clk 0:02:20.6]} 13. e5 {[%clk 0:02:13.7]} 13... Nh5 {[%clk 0:02:19.9]}
14. Ne4 {[%clk 0:02:01.4]} 14... bxc4 {[%clk 0:02:06.9]} 15. g4 {[%clk
0:01:46.4]} 15... Nf4 {[%clk 0:02:03.5]} 16. Nf6+ {[%clk 0:01:45.3]} 16... Kh8
{[%clk 0:01:59.5]} 17. bxc4 {[%clk 0:01:37]} 17... Nxg2 {[%clk 0:01:47.4]} 18.
Kxg2 {[%clk 0:01:37.9]} 18... Ng8 {[%clk 0:01:40.8]} 19. g5 {[%clk 0:01:35.5]}
19... Ne7 {[%clk 0:01:08.8]} 20. Bc3 {[%clk 0:01:32]} 20... Nf5 {[%clk 0:01:08]}
21. Rd3 {[%clk 0:01:23.7]} 21... Nh4+ {[%clk 0:01:06.7]} 22. Kg3 {[%clk
0:01:24.2]} 22... Nxf3 {[%clk 0:01:05.7]} 23. Rxf3 {[%clk 0:01:24.9]} 23... Bxf3
{[%clk 0:01:04.5]} 24. Kxf3 {[%clk 0:01:25.8]} 24... dxe5 {[%clk 0:00:50.1]} 25.
dxe5 {[%clk 0:01:26.7]} 25... Qe7 {[%clk 0:00:50.2]} 26. a3 {[%clk 0:01:09.9]}
26... Rfd8 {[%clk 0:00:49.7]} 27. Qe4 {[%clk 0:01:05.8]} 27... Qc5 {[%clk
0:00:43]} 28. Qh4 {[%clk 0:01:01.8]} 28... Bxf6 {[%clk 0:00:42.8]} 29. gxf6
{[%clk 0:00:55.3]} 29... Rd3+ {[%clk 0:00:42.2]} 30. Kg2 {[%clk 0:00:53.5]}
30... Rxc3 {[%clk 0:00:39.4]} 31. Re1 {[%clk 0:00:35.8]} 31... Rc2 {[%clk
0:00:18.9]} 32. Re4 {[%clk 0:00:26.2]} 32... Qf8 {[%clk 0:00:09.7]} 33. Re3
{[%clk 0:00:20.2]} 33... Rbb2 {[%clk 0:00:08.1]} 34. Rf3 {[%clk 0:00:19.6]}
34... Qa8 {[%clk 0:00:05.9]} 35. Qh6 {[%clk 0:00:17.6]} 35... Rxf2+ {[%clk
0:00:03.8]} 36. Kg3 {[%clk 0:00:18]} 36... Rxf3+ {[%clk 0:00:03.5]} 37. Kg4
{[%clk 0:00:17.6]} 37... Rg2+ {[%clk 0:00:02.4]} 38. Kh4 {[%clk 0:00:15]} 38...
Rxh2+ {[%clk 0:00:02.5]} 0-1

[Event "*** Titled Tuesday Blitz"]
[Site "Chess.com"]
[Date "2021.04.06"]
[Round "11"]
[White "Andrakhanova"]
[Black "IANOV0007"]
[Result "0-1"]
[WhiteElo "2269"]
[BlackElo "2469"]
[TimeControl "180+1"]
[EndTime "12:07:26 PDT"]
[Termination "IANOV0007 won on time"]

1. c4 {[%clk 0:03:00.9]} 1... d6 {[%clk 0:02:55.4]} 2. g3 {[%clk 0:02:58.8]}
2... g6 {[%clk 0:02:54.7]} 3. Bg2 {[%clk 0:02:58.9]} 3... Bg7 {[%clk 0:02:54.8]}
4. Nf3 {[%clk 0:02:59.1]} 4... Nf6 {[%clk 0:02:54.7]} 5. O-O {[%clk 0:02:58.9]}
5... O-O {[%clk 0:02:54.6]} 6. Nc3 {[%clk 0:02:58.5]} 6... c6 {[%clk 0:02:53.4]}
7. d4 {[%clk 0:02:58.5]} 7... Bf5 {[%clk 0:02:52.4]} 8. h3 {[%clk 0:02:57.3]}
8... Ne4 {[%clk 0:02:51.3]} 9. Kh2 {[%clk 0:02:53.7]} 9... Nxc3 {[%clk
0:02:50.5]} 10. bxc3 {[%clk 0:02:54.1]} 10... Be4 {[%clk 0:02:50.5]} 11. Bf4
{[%clk 0:02:42]} 11... Nd7 {[%clk 0:02:49.1]} 12. Qd2 {[%clk 0:02:41.5]} 12...
Nb6 {[%clk 0:02:44]} 13. c5 {[%clk 0:02:34.3]} 13... dxc5 {[%clk 0:02:42.5]} 14.
dxc5 {[%clk 0:02:35.2]} 14... Na4 {[%clk 0:02:37.3]} 15. Qe3 {[%clk 0:02:10]}
15... Nxc3 {[%clk 0:02:32.3]} 16. Be5 {[%clk 0:01:52.2]} 16... Bxe5 {[%clk
0:02:21.3]} 17. Nxe5 {[%clk 0:01:53.1]} 17... Bxg2 {[%clk 0:02:20.9]} 18. Kxg2
{[%clk 0:01:53.8]} 18... Nd5 {[%clk 0:02:15.5]} 19. Qb3 {[%clk 0:01:41.7]} 19...
Qc7 {[%clk 0:02:12]} 20. Nd3 {[%clk 0:01:30.1]} 20... Rfd8 {[%clk 0:02:06.3]}
21. Rab1 {[%clk 0:01:28]} 21... Rd7 {[%clk 0:02:05.1]} 22. Rfe1 {[%clk
0:01:19.7]} 22... Rad8 {[%clk 0:02:03]} 23. e4 {[%clk 0:01:16.5]} 23... Nf6
{[%clk 0:01:58.9]} 24. Nf4 {[%clk 0:01:11]} 24... e5 {[%clk 0:01:56.1]} 25. Ne2
{[%clk 0:01:03.9]} 25... Nxe4 {[%clk 0:01:53.3]} 26. Nc3 {[%clk 0:00:59.5]}
26... Nd2 {[%clk 0:01:50.7]} 27. Qa4 {[%clk 0:00:42.9]} 27... Nxb1 {[%clk
0:01:48.9]} 28. Rxb1 {[%clk 0:00:43.8]} 28... a6 {[%clk 0:01:38.6]} 29. Ne4
{[%clk 0:00:32.2]} 29... Rd4 {[%clk 0:01:36.6]} 30. Qc2 {[%clk 0:00:31.4]} 30...
f5 {[%clk 0:01:26.7]} 31. Qb3+ {[%clk 0:00:27.4]} 31... Kh8 {[%clk 0:01:21.1]}
32. Ng5 {[%clk 0:00:24.2]} 32... Rd3 {[%clk 0:00:57.9]} 33. Qe6 {[%clk
0:00:21.8]} 33... R3d5 {[%clk 0:00:48.3]} 34. Qf6+ {[%clk 0:00:20.2]} 34... Kg8
{[%clk 0:00:46.3]} 35. Ne6 {[%clk 0:00:19.1]} 35... Qd7 {[%clk 0:00:36.3]} 36.
Ng5 {[%clk 0:00:13.1]} 36... Rf8 {[%clk 0:00:33]} 37. Rxb7 {[%clk 0:00:06.2]}
37... Qxb7 {[%clk 0:00:30.2]} 38. Qe6+ {[%clk 0:00:05.5]} 38... Kg7 {[%clk
0:00:28.9]} 39. h4 {[%clk 0:00:04.2]} 39... Qd7 {[%clk 0:00:26.5]} 0-1

[Event "*** Titled Tuesday Blitz"]
[Site "Chess.com"]
[Date "2021.04.06"]
[Round "11"]
[White "Ave_Mariia"]
[Black "ARMQUEEN"]
[Result "0-1"]
[WhiteElo "2458"]
[BlackElo "2327"]
[TimeControl "180+1"]
[EndTime "12:07:27 PDT"]
[Termination "ARMQUEEN won by resignation"]

1. d4 {[%clk 0:03:00.9]} 1... Nf6 {[%clk 0:02:47.8]} 2. c4 {[%clk 0:03:00.9]}
2... c5 {[%clk 0:02:45.4]} 3. d5 {[%clk 0:03:00.9]} 3... e6 {[%clk 0:02:44.4]}
4. Nc3 {[%clk 0:03:00.4]} 4... exd5 {[%clk 0:02:36.8]} 5. cxd5 {[%clk
0:03:01.3]} 5... d6 {[%clk 0:02:31.1]} 6. g3 {[%clk 0:03:01.5]} 6... g6 {[%clk
0:02:28.1]} 7. Bg2 {[%clk 0:03:00.4]} 7... Bg7 {[%clk 0:02:28.4]} 8. Nf3 {[%clk
0:03:00.8]} 8... O-O {[%clk 0:02:28.4]} 9. O-O {[%clk 0:03:01]} 9... a6 {[%clk
0:02:27.5]} 10. a4 {[%clk 0:03:00.7]} 10... Re8 {[%clk 0:02:27.9]} 11. Bf4
{[%clk 0:03:00.5]} 11... Nh5 {[%clk 0:02:25.6]} 12. Bg5 {[%clk 0:02:59.4]} 12...
f6 {[%clk 0:02:25.3]} 13. Be3 {[%clk 0:02:55.9]} 13... f5 {[%clk 0:02:25.3]} 14.
Qc1 {[%clk 0:02:39.4]} 14... Nd7 {[%clk 0:02:23.9]} 15. Bg5 {[%clk 0:02:23.2]}
15... Nhf6 {[%clk 0:02:22.5]} 16. Bf4 {[%clk 0:02:10.5]} 16... Qe7 {[%clk
0:02:19.9]} 17. Nd2 {[%clk 0:02:02.2]} 17... Nh5 {[%clk 0:02:11.7]} 18. Be3
{[%clk 0:02:01.6]} 18... Qf7 {[%clk 0:02:07.4]} 19. Nc4 {[%clk 0:01:59.1]} 19...
Qf8 {[%clk 0:02:02]} 20. a5 {[%clk 0:01:50.3]} 20... Nhf6 {[%clk 0:01:36.5]} 21.
Bf4 {[%clk 0:01:47.6]} 21... Ne5 {[%clk 0:01:29.5]} 22. Bxe5 {[%clk 0:01:47.7]}
22... dxe5 {[%clk 0:01:25.9]} 23. d6 {[%clk 0:01:48]} 23... Be6 {[%clk
0:01:13.1]} 24. Nb6 {[%clk 0:01:47.8]} 24... Rab8 {[%clk 0:01:09.6]} 25. Rd1
{[%clk 0:01:45.7]} 25... Red8 {[%clk 0:01:02.8]} 26. Nca4 {[%clk 0:01:39.9]}
26... Rxd6 {[%clk 0:00:58.9]} 27. Rxd6 {[%clk 0:01:39.5]} 27... Qxd6 {[%clk
0:00:58.3]} 28. Qxc5 {[%clk 0:01:36.5]} 28... Qd2 {[%clk 0:00:51.9]} 29. Qxe5
{[%clk 0:01:34.1]} 29... Re8 {[%clk 0:00:51.6]} 30. Qc7 {[%clk 0:01:13.7]} 30...
Qxe2 {[%clk 0:00:45.1]} 31. Nc5 {[%clk 0:01:09.4]} 31... Bf7 {[%clk 0:00:38.1]}
32. Qxb7 {[%clk 0:01:02.6]} 32... Ng4 {[%clk 0:00:34.8]} 33. Rf1 {[%clk
0:01:01.3]} 33... Bd4 {[%clk 0:00:33]} 34. Ncd7 {[%clk 0:00:46]} 34... Bxf2+
{[%clk 0:00:20.6]} 35. Kh1 {[%clk 0:00:46.2]} 35... Bd4 {[%clk 0:00:19.6]} 36.
h3 {[%clk 0:00:42.1]} 36... Ne3 {[%clk 0:00:16.3]} 37. Rc1 {[%clk 0:00:31.8]}
37... Qxb2 {[%clk 0:00:13.1]} 38. Rg1 {[%clk 0:00:28.4]} 38... Nxg2 {[%clk
0:00:12.8]} 39. Rxg2 {[%clk 0:00:29.3]} 39... Re1+ {[%clk 0:00:12.5]} 40. Kh2
{[%clk 0:00:29]} 40... Bg1+ {[%clk 0:00:12.8]} 41. Kh1 {[%clk 0:00:26.9]} 41...
Bxb6+ {[%clk 0:00:12.3]} 42. Kh2 {[%clk 0:00:24.6]} 42... Bg1+ {[%clk 0:00:13]}
43. Kh1 {[%clk 0:00:24.5]} 43... Qxb7 {[%clk 0:00:13.9]} 0-1

[Event "*** Titled Tuesday Blitz"]
[Site "Chess.com"]
[Date "2021.04.06"]
[Round "11"]
[White "Borsuk_Konstantin"]
[Black "maximnovik"]
[Result "1-0"]
[WhiteElo "2676"]
[BlackElo "2561"]
[TimeControl "180+1"]
[EndTime "12:07:30 PDT"]
[Termination "Borsuk_Konstantin won by resignation"]

1. d4 {[%clk 0:03:00.9]} 1... Nf6 {[%clk 0:02:59.3]} 2. c4 {[%clk 0:03:00.7]}
2... g6 {[%clk 0:02:59.8]} 3. Nc3 {[%clk 0:03:00.6]} 3... d5 {[%clk 0:02:59.9]}
4. Nf3 {[%clk 0:03:00.3]} 4... Bg7 {[%clk 0:03:00.4]} 5. Bg5 {[%clk 0:03:00.8]}
5... Ne4 {[%clk 0:03:00]} 6. cxd5 {[%clk 0:03:00.2]} 6... Nxg5 {[%clk
0:03:00.3]} 7. Nxg5 {[%clk 0:03:00.4]} 7... e6 {[%clk 0:03:00.8]} 8. Nf3 {[%clk
0:02:59.3]} 8... exd5 {[%clk 0:03:01]} 9. b4 {[%clk 0:03:00]} 9... O-O {[%clk
0:02:59.7]} 10. Qb3 {[%clk 0:02:59.7]} 10... c6 {[%clk 0:02:54.9]} 11. e3 {[%clk
0:02:59.6]} 11... Be6 {[%clk 0:02:53.9]} 12. a4 {[%clk 0:02:58.3]} 12... Nd7
{[%clk 0:02:53.2]} 13. Bd3 {[%clk 0:02:58.2]} 13... f5 {[%clk 0:02:21.2]} 14.
Ne2 {[%clk 0:02:54.3]} 14... g5 {[%clk 0:02:18.6]} 15. h4 {[%clk 0:02:54]} 15...
h6 {[%clk 0:02:15.6]} 16. hxg5 {[%clk 0:02:43.3]} 16... hxg5 {[%clk 0:02:15.6]}
17. Kd2 {[%clk 0:02:38.2]} 17... Qe7 {[%clk 0:02:14.7]} 18. Rh5 {[%clk
0:02:37.7]} 18... Nf6 {[%clk 0:01:59.3]} 19. Rhh1 {[%clk 0:02:21.3]} 19... Ne4+
{[%clk 0:01:58.8]} 20. Ke1 {[%clk 0:02:17.7]} 20... a5 {[%clk 0:01:53.4]} 21. b5
{[%clk 0:02:03.9]} 21... c5 {[%clk 0:01:52.6]} 22. Qa3 {[%clk 0:02:00.9]} 22...
Rae8 {[%clk 0:01:42.3]} 23. Rc1 {[%clk 0:01:52.7]} 23... c4 {[%clk 0:01:25.3]}
24. Qxe7 {[%clk 0:01:51.8]} 24... Rxe7 {[%clk 0:01:24.7]} 25. Bxe4 {[%clk
0:01:50.4]} 25... fxe4 {[%clk 0:01:21.1]} 26. Nd2 {[%clk 0:01:46.7]} 26... Ref7
{[%clk 0:01:16.6]} 27. Rf1 {[%clk 0:01:41.7]} 27... g4 {[%clk 0:01:03.5]} 28. g3
{[%clk 0:01:39.5]} 28... Rc7 {[%clk 0:00:44.8]} 29. Nf4 {[%clk 0:01:33.4]} 29...
Bf7 {[%clk 0:00:44.7]} 30. Nb1 {[%clk 0:01:32.9]} 30... Rd8 {[%clk 0:00:42.5]}
31. Nc3 {[%clk 0:01:32.3]} 31... Bf8 {[%clk 0:00:42.6]} 32. Kd2 {[%clk
0:01:32.4]} 32... Bb4 {[%clk 0:00:42.3]} 33. Rh1 {[%clk 0:01:33]} 33... Kg7
{[%clk 0:00:41.6]} 34. Rh4 {[%clk 0:01:32.7]} 34... Rh8 {[%clk 0:00:39.9]} 35.
Rxh8 {[%clk 0:01:30.9]} 35... Kxh8 {[%clk 0:00:39.5]} 36. Rh1+ {[%clk
0:01:31.6]} 36... Kg7 {[%clk 0:00:39.2]} 37. Rh4 {[%clk 0:01:32.1]} 37... Rc8
{[%clk 0:00:37.2]} 38. Rxg4+ {[%clk 0:01:32]} 38... Kf6 {[%clk 0:00:37.4]} 39.
Rh4 {[%clk 0:01:30.9]} 39... Rg8 {[%clk 0:00:32.6]} 40. Kc2 {[%clk 0:01:30.5]}
40... Rg5 {[%clk 0:00:27.2]} 41. Rh6+ {[%clk 0:01:26.6]} 41... Kg7 {[%clk
0:00:27]} 42. Rb6 {[%clk 0:01:15.6]} 42... Rf5 {[%clk 0:00:17.4]} 43. Rxb7
{[%clk 0:01:06.6]} 43... Kh6 {[%clk 0:00:17.9]} 44. Rd7 {[%clk 0:00:43.5]} 44...
Kg5 {[%clk 0:00:16.7]} 45. Ncxd5 {[%clk 0:00:42.6]} 45... Kg4 {[%clk 0:00:13.9]}
46. b6 {[%clk 0:00:40.6]} 46... Bxd5 {[%clk 0:00:08.8]} 47. Rxd5 {[%clk
0:00:40.3]} 47... Rf7 {[%clk 0:00:08.6]} 48. Rb5 {[%clk 0:00:38.8]} 48... Rc7
{[%clk 0:00:07.1]} 49. bxc7 {[%clk 0:00:38.2]} 1-0

[Event "*** Titled Tuesday Blitz"]
[Site "Chess.com"]
[Date "2021.04.06"]
[Round "11"]
[White "ViditYT"]
[Black "olksuna"]
[Result "1-0"]
[WhiteElo "2918"]
[BlackElo "2676"]
[TimeControl "180+1"]
[EndTime "12:07:34 PDT"]
[Termination "ViditYT won by resignation"]

1. Nf3 {[%clk 0:02:57.2]} 1... Nf6 {[%clk 0:02:58.5]} 2. g3 {[%clk 0:02:55.7]}
2... g6 {[%clk 0:02:55.6]} 3. Bg2 {[%clk 0:02:56.6]} 3... Bg7 {[%clk 0:02:56.2]}
4. O-O {[%clk 0:02:57.1]} 4... O-O {[%clk 0:02:56.7]} 5. d4 {[%clk 0:02:56.9]}
5... d5 {[%clk 0:02:54.7]} 6. c3 {[%clk 0:02:56.6]} 6... b6 {[%clk 0:02:52.6]}
7. a4 {[%clk 0:02:56.2]} 7... a5 {[%clk 0:02:49.2]} 8. Bf4 {[%clk 0:02:55.9]}
8... Bb7 {[%clk 0:02:48.6]} 9. Na3 {[%clk 0:02:55.8]} 9... e6 {[%clk 0:02:46.7]}
10. Qb3 {[%clk 0:02:54.3]} 10... Qe7 {[%clk 0:02:41.6]} 11. Nb5 {[%clk
0:02:52.7]} 11... Rc8 {[%clk 0:02:40]} 12. Ne5 {[%clk 0:02:39.3]} 12... Nfd7
{[%clk 0:02:32.6]} 13. Nxd7 {[%clk 0:02:29.6]} 13... Qxd7 {[%clk 0:02:30.9]} 14.
Rac1 {[%clk 0:02:28.9]} 14... Na6 {[%clk 0:02:08.4]} 15. Rfd1 {[%clk 0:02:24.7]}
15... Bf8 {[%clk 0:01:52.4]} 16. Qc2 {[%clk 0:02:11.9]} 16... c6 {[%clk
0:01:47.5]} 17. Na3 {[%clk 0:02:12.3]} 17... c5 {[%clk 0:01:46.1]} 18. Nb5
{[%clk 0:01:52.1]} 18... cxd4 {[%clk 0:01:41.9]} 19. Rxd4 {[%clk 0:01:53]} 19...
Bc5 {[%clk 0:01:19.1]} 20. Rd2 {[%clk 0:01:50.7]} 20... Qe7 {[%clk 0:01:17.8]}
21. e4 {[%clk 0:01:50]} 21... d4 {[%clk 0:01:03.6]} 22. e5 {[%clk 0:01:34.8]}
22... Bxg2 {[%clk 0:00:58.2]} 23. Kxg2 {[%clk 0:01:35.4]} 23... dxc3 {[%clk
0:00:57.5]} 24. bxc3 {[%clk 0:01:35.2]} 24... g5 {[%clk 0:00:47.7]} 25. Be3
{[%clk 0:01:34.9]} 25... Bxe3 {[%clk 0:00:46.6]} 26. fxe3 {[%clk 0:01:35.8]}
26... Rc5 {[%clk 0:00:46.3]} 27. Qe4 {[%clk 0:01:33.9]} 27... Rd8 {[%clk
0:00:45.5]} 28. Nd6 {[%clk 0:01:27]} 28... f5 {[%clk 0:00:34.3]} 29. exf6 {[%clk
0:01:24]} 29... Qxf6 {[%clk 0:00:30.3]} 30. Rf2 {[%clk 0:00:23.7]} 30... Qe5
{[%clk 0:00:28]} 31. Qxe5 {[%clk 0:00:21.6]} 31... Rxe5 {[%clk 0:00:26.6]} 32.
Nf7 {[%clk 0:00:22.3]} 32... Rdd5 {[%clk 0:00:23.3]} 33. c4 {[%clk 0:00:14.9]}
33... Rc5 {[%clk 0:00:20.8]} 34. Nxe5 {[%clk 0:00:15.2]} 34... Rxe5 {[%clk
0:00:21.7]} 35. Rb1 {[%clk 0:00:14.7]} 35... Rxe3 {[%clk 0:00:19.5]} 36. Rxb6
{[%clk 0:00:14.9]} 36... Nc5 {[%clk 0:00:20.4]} 37. Rb5 {[%clk 0:00:15.3]} 37...
Ne4 {[%clk 0:00:19.1]} 38. Re5 {[%clk 0:00:13.3]} 38... g4 {[%clk 0:00:09.9]}
39. c5 {[%clk 0:00:12.6]} 1-0

[Event "*** Titled Tuesday Blitz"]
[Site "Chess.com"]
[Date "2021.04.06"]
[Round "11"]
[White "Chopper1905"]
[Black "KaterynaLagno"]
[Result "1-0"]
[WhiteElo "2921"]
[BlackElo "2682"]
[TimeControl "180+1"]
[EndTime "12:07:39 PDT"]
[Termination "Chopper1905 won on time"]

1. e4 {[%clk 0:03:00.9]} 1... e5 {[%clk 0:02:59.7]} 2. f4 {[%clk 0:03:00.3]}
2... d5 {[%clk 0:02:58.7]} 3. exd5 {[%clk 0:02:58.6]} 3... exf4 {[%clk
0:02:58.9]} 4. Nf3 {[%clk 0:02:53.1]} 4... Nf6 {[%clk 0:02:58.6]} 5. Bb5+ {[%clk
0:02:53.1]} 5... c6 {[%clk 0:02:56.9]} 6. dxc6 {[%clk 0:02:50.1]} 6... bxc6
{[%clk 0:02:56.3]} 7. Be2 {[%clk 0:02:40.1]} 7... c5 {[%clk 0:02:52.1]} 8. O-O
{[%clk 0:02:34.9]} 8... Be7 {[%clk 0:02:38.6]} 9. d4 {[%clk 0:02:30.9]} 9...
cxd4 {[%clk 0:02:33.1]} 10. Qxd4 {[%clk 0:02:29.5]} 10... Qxd4+ {[%clk
0:02:09.6]} 11. Nxd4 {[%clk 0:02:30.4]} 11... Bb7 {[%clk 0:02:02.1]} 12. Bxf4
{[%clk 0:02:25.4]} 12... O-O {[%clk 0:02:02.3]} 13. Nd2 {[%clk 0:02:09.3]} 13...
Nbd7 {[%clk 0:01:58.4]} 14. c4 {[%clk 0:02:03.2]} 14... Bc5 {[%clk 0:01:52.8]}
15. Nb3 {[%clk 0:02:02.7]} 15... Bb6 {[%clk 0:01:53.5]} 16. Bd6 {[%clk
0:01:57.2]} 16... Rfe8 {[%clk 0:01:52.3]} 17. c5 {[%clk 0:01:56.9]} 17... Ne4
{[%clk 0:01:48.5]} 18. cxb6 {[%clk 0:01:16.6]} 18... Nxd6 {[%clk 0:01:48.6]} 19.
bxa7 {[%clk 0:01:12]} 19... Rxa7 {[%clk 0:01:49.5]} 20. Bb5 {[%clk 0:00:52.7]}
20... Nxb5 {[%clk 0:01:43.9]} 21. Nxb5 {[%clk 0:00:52.2]} 21... Ra4 {[%clk
0:01:38.5]} 22. Nd6 {[%clk 0:00:49.6]} 22... Rb8 {[%clk 0:01:36.7]} 23. Rxf7
{[%clk 0:00:34.3]} 23... Bc6 {[%clk 0:01:26.7]} 24. Rc1 {[%clk 0:00:34.2]} 24...
Rxa2 {[%clk 0:01:13.8]} 25. Rxc6 {[%clk 0:00:21.9]} 25... Ne5 {[%clk 0:01:13.8]}
26. Rfc7 {[%clk 0:00:16.6]} 26... Nxc6 {[%clk 0:01:09.7]} 27. Rxc6 {[%clk
0:00:17.5]} 27... Rxb2 {[%clk 0:01:05.8]} 28. Nd4 {[%clk 0:00:16.9]} 28... Rd2
{[%clk 0:00:41.3]} 29. N4b5 {[%clk 0:00:13.3]} 29... Rd5 {[%clk 0:00:31.3]} 30.
Nc3 {[%clk 0:00:11.1]} 30... Rd2 {[%clk 0:00:27.1]} 31. h3 {[%clk 0:00:11.5]}
31... Rc2 {[%clk 0:00:24.1]} 32. Rc7 {[%clk 0:00:10.5]} 32... h6 {[%clk
0:00:19.4]} 33. Nf5 {[%clk 0:00:09.2]} 33... Rb3 {[%clk 0:00:15.4]} 34. Rxg7+
{[%clk 0:00:06.4]} 34... Kh8 {[%clk 0:00:10.3]} 35. Ne4 {[%clk 0:00:05.7]} 35...
Rc1+ {[%clk 0:00:04.4]} 36. Kh2 {[%clk 0:00:06.1]} 36... Rf1 {[%clk 0:00:04.7]}
37. Nf6 {[%clk 0:00:04.9]} 1-0

[Event "*** Titled Tuesday Blitz"]
[Site "Chess.com"]
[Date "2021.04.06"]
[Round "11"]
[White "kinga2008"]
[Black "mamonika"]
[Result "1-0"]
[WhiteElo "2265"]
[BlackElo "2054"]
[TimeControl "180+1"]
[EndTime "12:07:43 PDT"]
[Termination "kinga2008 won on time"]

1. e4 {[%clk 0:02:53.7]} 1... c5 {[%clk 0:02:44.7]} 2. Nf3 {[%clk 0:02:53.4]}
2... Nc6 {[%clk 0:02:43.3]} 3. c3 {[%clk 0:02:53.2]} 3... Nf6 {[%clk 0:02:39.4]}
4. Bd3 {[%clk 0:02:49.6]} 4... d5 {[%clk 0:02:36.1]} 5. e5 {[%clk 0:02:48.6]}
5... Nd7 {[%clk 0:02:36.4]} 6. e6 {[%clk 0:02:47.4]} 6... fxe6 {[%clk
0:02:34.7]} 7. O-O {[%clk 0:02:47.9]} 7... e5 {[%clk 0:02:31.7]} 8. Ng5 {[%clk
0:02:46.7]} 8... Nf6 {[%clk 0:02:29.7]} 9. Bxh7 {[%clk 0:02:28.5]} 9... Nxh7
{[%clk 0:02:25.1]} 10. Qh5+ {[%clk 0:02:27.6]} 10... Kd7 {[%clk 0:02:22.1]} 11.
Nxh7 {[%clk 0:02:26.5]} 11... Kc7 {[%clk 0:02:14.5]} 12. Qg6 {[%clk 0:02:12.6]}
12... Bd7 {[%clk 0:01:51]} 13. Ng5 {[%clk 0:02:11.5]} 13... Qe8 {[%clk
0:01:44.4]} 14. Qxe8 {[%clk 0:01:52.8]} 14... Rxe8 {[%clk 0:01:41.4]} 15. d4
{[%clk 0:01:52.8]} 15... exd4 {[%clk 0:01:36]} 16. cxd4 {[%clk 0:01:49.2]} 16...
Nxd4 {[%clk 0:01:36.1]} 17. Na3 {[%clk 0:01:47.2]} 17... e5 {[%clk 0:01:31.5]}
18. Be3 {[%clk 0:01:42.3]} 18... Bd6 {[%clk 0:01:22.5]} 19. b4 {[%clk
0:01:29.3]} 19... Ne2+ {[%clk 0:01:13.6]} 20. Kh1 {[%clk 0:01:17.4]} 20... e4
{[%clk 0:01:10.2]} 21. h3 {[%clk 0:01:00.3]} 21... d4 {[%clk 0:00:49.4]} 22. Nc4
{[%clk 0:00:42.3]} 22... dxe3 {[%clk 0:00:40.8]} 23. Nxd6 {[%clk 0:00:41.4]}
23... Kxd6 {[%clk 0:00:41.1]} 24. Nf7+ {[%clk 0:00:38.4]} 24... Kc6 {[%clk
0:00:31.6]} 25. Nxh8 {[%clk 0:00:39.3]} 25... Rxh8 {[%clk 0:00:30.6]} 26. Rae1
{[%clk 0:00:38.8]} 26... Nd4 {[%clk 0:00:20.1]} 27. Rxe3 {[%clk 0:00:34.8]}
27... Bf5 {[%clk 0:00:17.6]} 28. bxc5 {[%clk 0:00:34.1]} 28... Kxc5 {[%clk
0:00:17.2]} 29. Rd1 {[%clk 0:00:31.4]} 29... b5 {[%clk 0:00:13.7]} 30. Rc3+
{[%clk 0:00:14.2]} 30... Kd5 {[%clk 0:00:13.9]} 31. Rb3 {[%clk 0:00:14.6]} 31...
a6 {[%clk 0:00:13.4]} 32. Rb4 {[%clk 0:00:13.9]} 32... Ke5 {[%clk 0:00:09.6]}
33. Rbxd4 {[%clk 0:00:13.9]} 33... Rc8 {[%clk 0:00:10.2]} 34. Rd5+ {[%clk
0:00:13.4]} 34... Kf6 {[%clk 0:00:09.8]} 35. Rd6+ {[%clk 0:00:12.9]} 35... Ke7
{[%clk 0:00:09.4]} 36. Rxa6 {[%clk 0:00:12.5]} 36... Rc2 {[%clk 0:00:08.3]} 37.
Rd5 {[%clk 0:00:11.4]} 37... g6 {[%clk 0:00:04.2]} 38. Rxb5 {[%clk 0:00:08.3]}
38... Rxf2 {[%clk 0:00:03.1]} 39. Kg1 {[%clk 0:00:08.9]} 39... Rd2 {[%clk
0:00:01.3]} 40. g4 {[%clk 0:00:09.1]} 40... Bd7 {[%clk 0:00:01.1]} 41. Re5+
{[%clk 0:00:08.6]} 1-0